Workbook

Sheet Blank Cash Flow
A1: Carrington Area Farm Management ******* Cash Flow Projection ******* | D1: Name | G1: Cash Flow Period | L1: Input per acre expenses: | R1: BE Yield Over All Listed Costs Shown
A2: Crop | B2: Acres | C2: Yield | D2: Feed | E2: Seed | F2: Bu/Cwt Sold | G2: Price | H2: Dollars | I2: File Name | K2: Crop | L2: Seed | M2: Fertilizer | N2: Chemical | O2: Crop Insur | P2: Custom/Drying | Q2: Listed Costs/Unit
B3: 0 | C3: 0 | F3: =SUM(B3*C3-(E3+D3)) -> 0 | G3: 0 | H3: =SUM(F3*G3) -> 0 | I3: =C3*G3 -> 0 | K3: =A3 -> 0 | L3: 0 | M3: 0 | N3: 0 | O3: 0 | P3: 0 | Q3: =(L3+M3+N3+O3+P3)/C3 ->  | R3: =(L3+M3+N3+O3+P3)/G3 -> 
B4: 0 | C4: 0 | F4: 0 | G4: 0 | H4: 0 | I4: =C4*G4 -> 0 | K4: 0 | L4: 0 | M4: 0 | N4: 0 | O4: 0 | P4: 0 | Q4: =(L4+M4+N4+O4+P4)/C4 ->  | R4: =(L4+M4+N4+O4+P4)/G4 -> 
B5: 0 | C5: 0 | F5: 0 | G5: 0 | H5: 0 | I5: 0 | K5: 0 | L5: 0 | M5: 0 | N5: 0 | O5: 0 | P5: 0
B6: 0 | C6: 0 | F6: 0 | G6: 0 | H6: 0 | I6: 0 | L6: 0 | M6: 0 | N6: 0 | O6: 0 | P6: 0
B7: 0 | C7: 0 | F7: 0 | G7: 0 | H7: 0 | I7: 0 | L7: 0 | M7: 0 | N7: 0 | O7: 0 | P7: 0
B8: 0 | C8: 0 | F8: 0 | G8: 0 | H8: 0 | I8: 0 | L8: 0 | M8: 0 | N8: 0 | O8: 0 | P8: 0
B9: 0 | C9: 0 | F9: 0 | G9: 0 | H9: 0 | I9: 0 | L9: 0 | M9: 0 | N9: 0 | O9: 0 | P9: 0
B10: 0 | C10: 0 | F10: 0 | G10: 0 | H10: 0 | I10: 0 | L10: 0 | M10: 0 | N10: 0 | O10: 0 | P10: 0
B11: 0 | C11: 0 | F11: 0 | G11: 0 | H11: 0 | I11: 0 | L11: 0 | M11: 0 | N11: 0 | O11: 0 | P11: 0
B12: 0 | C12: 0 | F12: 0 | G12: 0 | H12: 0 | I12: 0 | L12: 0 | M12: 0 | N12: 0 | O12: 0 | P12: 0
B13: 0 | C13: 0 | F13: 0 | G13: 0 | H13: 0 | I13: 0 | L13: 0 | M13: 0 | N13: 0 | O13: 0 | P13: 0
B14: 0 | C14: 0 | F14: 0 | G14: 0 | H14: 0 | I14: 0 | L14: 0 | M14: 0 | N14: 0 | O14: 0 | P14: 0
A15: Livestock | B15: Head | C15: % | D15: Replacements | E15: Sell | F15: Weight | G15: Price/lb. | H15: Value | I15: Gross $/Acre | R15: Return Over Listed Costs/A.
A16: Beef cows | B16: 0 | C16: 0 | D16: 0 | E16: =(B16*C16)-D16 -> 0 | F16: 0 | G16: 0 | H16: =F16*E16*G16 -> 0 | I16: =SUM(B3:B14) -> 0 | L16: Crop totals for per acre expenses: | Q16: Listed Costs/Ac.
A17: Open Heifers | B17: 0 | C17: 0 | D17: 0 | E17: =(B17*C17)-D17 -> 0 | F17: 0 | G17: 0 | H17: =F17*E17*G17 -> 0 | I17: Total Acres | K17: =A3 -> 0 | L17: =B3*L3 -> 0 | M17: =B3*M3 -> 0 | N17: =B3*N3 -> 0 | O17: =B3*O3 -> 0 | P17: =B3*P3 -> 0 | Q17: =(L17+M17+N17+O17+P17)/B3 ->  | R17: =I3-Q17 -> 
A18: Cull cows | B18: 0 | C18: 0 | D18: 0 | E18: =(B18*C18)-D18 -> 0 | F18: 0 | G18: 0 | H18: =F18*E18*G18 -> 0 | I18: Notes: | K18: 0 | L18: 0 | M18: 0 | N18: 0 | O18: 0 | P18: 0 | Q18: =(L18+M18+N18+O18+P18)/B4 ->  | R18: =I4-Q18 -> 
A19: Other Livestock | B19: 0 | C19: 0 | D19: 0 | E19: =(B19*C19)-D19 -> 0 | F19: 0 | G19: 0 | H19: =F19*E19*G19 -> 0 | K19: 0 | L19: 0 | M19: 0 | N19: 0 | O19: 0 | P19: 0
A20: Other Farm Income | H20: 0 | L20: 0 | M20: 0 | N20: 0 | O20: 0 | P20: 0
A21: OPERATING EXPENSES | E21: Credit Needed | F21: Planned Exp. | G21: Gov't Pymt. | H21: 0 | L21: 0 | M21: 0 | N21: 0 | O21: 0 | P21: 0
A22: Machinery & Building Repair | E22: 0 | F22: 0 | G22: Total | H22: =SUM(H3:H21) -> 0 | L22: 0 | M22: 0 | N22: 0 | O22: 0 | P22: 0
A23: Interest | E23: 0 | F23: 0 | G23: Notes: | L23: 0 | M23: 0 | N23: 0 | O23: 0 | P23: 0
A24: Seed | E24: 0 | F24: =L29 -> 0 | L24: 0 | M24: 0 | N24: 0 | O24: 0 | P24: 0
A25: Fertilizer | E25: 0 | F25: =M29 -> 0 | L25: 0 | M25: 0 | N25: 0 | O25: 0 | P25: 0
A26: Chemical | E26: 0 | F26: =N29 -> 0 | L26: 0 | M26: 0 | N26: 0 | O26: 0 | P26: 0
A27: Crop Insurance | E27: 0 | F27: =O29 -> 0 | L27: 0 | M27: 0 | N27: 0 | O27: 0 | P27: 0
A28: Feed Expense | E28: 0 | F28: 0 | L28: 0 | M28: 0 | N28: 0 | O28: 0 | P28: 0
A29: Livestock Exp. (Vet,Supplies,Marketing,etc.) | E29: 0 | F29: 0 | K29: Total Crop Exp. $ | L29: =SUM(L17:L28) -> 0 | M29: =SUM(M17:M28) -> 0 | N29: =SUM(N17:N28) -> 0 | O29: =SUM(O17:O28) -> 0 | P29: =SUM(P17:P28) -> 0 | Q29: =(L29+M29+N29+O29+P29)/I16 -> 
A30: Land Rent | E30: 0 | F30: 0 | G30: Projected $ Left From Prior Year | L30: Seed | M30: Fertilizer | N30: Chemical | O30: Crop Insur | P30: Custom | Q30: xxxxxxxxxx
A31: CustomHire-Other | B31: 0 | C31: Lvstk. | D31: 0 | E31: 0 | F31: =B31+D31+P29 -> 0 | G31: Cash at Begin. of Period | I31: 0
A32: Gas, Fuel and Oil | E32: 0 | F32: 0 | G32: Old Crop & Grain Sales | I32: 0 | K32: Return over listed costs is available to pay for those expenses, capital purchases, family living and loan
A33: Real Estate Taxes | E33: 0 | F33: 0 | G33: Old Livestock Sales | I33: 0 | K33: payments listed on the plan. There are 5 areas of listed costs shown above.
A34: Hired Labor | E34: 0 | F34: 0 | G34: Old Acct's Receivable | I34: 0 | K34: Notes:
A35: Farm Insurance | E35: 0 | F35: 0 | G35: Last Year's Acct's Pay. | I35: 0
A36: Utilities | E36: 0 | F36: 0 | G36: Last Year's Oper. Loans | I36: 0
A37: General Farm Supplies | E37: 0 | F37: 0 | G37: Last Year's Chat. Loans | I37: 0
E38: 0 | F38: 0 | G38: Last Year's RE Loans | I38: 0
E39: 0 | F39: 0 | G39: Projected Cash Balance | I39: =I31+I32+I33+I34-I35-I36-I37-I38 -> 0
C40: TOTAL> | E40: =SUM(E22:E39) -> 0 | F40: =SUM(F22:F39) -> 0 | T40: Calculating Amortized Loan Payments(Ending Balance = 0 or a negative balance)
A41: Family Living Expense | E41: 0 | F41: 0 | G41: Financial Summary | K41: Land Rental Units | T41: Loan Amount $ | U41: Inter.Rate | V41: Years | W41: Ending Bal.$ | X41: Payment $ | Y41: Interest $
A42: Capital Purchases | E42: 0 | F42: 0 | G42: Farm Income | I42: =H22 -> 0 | K42: Landlord | N42: Acres | O42: Rent/Acre | P42: Total Paid | T42: 0 | U42: 0 | V42: 0 | W42: 0 | X42: =PMT(U42,V42,T42,W42,0)*-1 ->  | Y42: =T42*U42 -> 0
A43: Capital Purchases | E43: 0 | F43: 0 | G43: Farm Expenses | I43: =F40 -> 0 | O43: 0 | P43: 0 | T43: 0 | U43: 0 | V43: 0 | W43: 0 | Y43: =T43*U43 -> 0
A44: Payments to be made | G44: Net Farm Income | I44: =I42-I43 -> 0 | O44: 0 | P44: 0 | T44: 0 | U44: 0 | V44: 0 | W44: 0 | Y44: 0
A45: Annual Operating Ln | B45: Int rate | C45: 0.05 | D45: Est Months | E45: 0 | F45: =(E40+E41)*(1+(C45*(E45/12))) -> 0 | G45: Non Farm Income | I45: 0 | O45: 0 | P45: 0 | T45: 0 | U45: 0 | V45: 0 | W45: 0 | Y45: 0
A46: Capital Purchases Ln | B46: Int rate | C46: 0 | D46: Years for loan | E46: 0 | F46: 0 | G46: Family Living Exp | I46: =F41 -> 0 | O46: 0 | P46: 0 | T46: 0 | U46: 0 | V46: 0 | W46: 0 | Y46: 0
F47: 0 | G47: Net Cash Income | I47: =I44+I45-I46 -> 0 | O47: 0 | P47: 0 | T47: 0 | U47: 0 | V47: 0 | W47: 0 | Y47: 0
F48: 0 | G48: (Plus) Proj. Cash Bal. | I48: =I39 -> 0 | O48: 0 | P48: 0 | T48: 0 | U48: 0 | V48: 0 | W48: 0 | Y48: 0
F49: 0 | G49: (Plus) Interest Expense | I49: =F23 -> 0 | O49: 0 | P49: 0 | T49: 0 | U49: 0 | V49: 0 | W49: 0 | Y49: 0
F50: 0 | G50: (Plus) Money Borrowed | I50: =SUM(E40:E43) -> 0 | O50: 0 | P50: 0 | T50: 0 | U50: 0 | V50: 0 | W50: 0 | Y50: 0
F51: 0 | G51: (Less)Capital Purchases | I51: =SUM(F42:F43) -> 0 | O51: 0 | P51: 0 | T51: 0 | U51: 0 | V51: 0 | W51: 0 | Y51: 0
F52: 0 | G52: Available for Payments | I52: =I47+I48+I49+I50-I51 -> 0 | O52: 0 | P52: 0 | T52: 0 | U52: 0 | V52: 0 | W52: 0 | Y52: 0
A53: Income & Soc. Sec. Taxes to be paid | F53: 0 | G53: Payments to be made | I53: =F54 -> 0 | O53: 0 | P53: 0 | T53: 0 | U53: 0 | V53: 0 | W53: 0 | Y53: 0
C54: Total Payments to be made | F54: =SUM(F45:F53) -> 0 | G54: Margin | I54: =I52-I53 -> 0 | K54: Total Acres Rented, Avg. Rent, Total Paid | N54: =N43+N44+N45+N46+N47+N48+N49+N50+N51+N52+N53 -> 0 | O54: =P54/N54 ->  | P54: =P43+P44+P45+P46+P47+P48+P49+P50+P51+P52+P53 -> 0 | T54: Total Interest $ | U54: xxxxxxxxx | V54: xxxxxxxxx | W54: xxxxxxxxxxxx | X54: xxxxxxxxx | Y54: =SUM(Y42:Y53) -> 0

Sheet Sample Cash Flow 2015
A1: Carrington Area Farm Management ******* Cash Flow Projection ******* | D1: Name | E1: Iam Trying | G1: Jan-Dec 2015 | L1: Input per acre expenses: | R1: BE Yield Over All Listed Costs Shown
A2: Crop | B2: Acres | C2: Yield | D2: Feed | E2: Seed | F2: Bu/Cwt Sold | G2: Price | H2: Dollars | I2: ITryingCF2015A | K2: Crop | L2: Seed | M2: Fertilizer | N2: Chemical | O2: Crop Insur | P2: Custom/Drying | Q2: Listed Costs/Unit
A3: Wheat | B3: 700 | C3: 55 | E3: 1000 | F3: =SUM(B3*C3-(E3+D3)) -> 37500 | G3: 5 | H3: =SUM(F3*G3) -> 187500 | I3: =C3*G3 -> 275 | K3: =A3 -> Wheat | L3: 25 | M3: 135 | N3: 41 | O3: 32 | P3: 6 | Q3: =(L3+M3+N3+O3+P3)/C3 -> 4.345454545 | R3: =(L3+M3+N3+O3+P3)/G3 -> 47.8
A4: Malting Barley | B4: 500 | C4: 75 | F4: 37500 | G4: 5.45 | H4: 204375 | I4: =C4*G4 -> 408.75 | K4: Malting Barley | L4: 18 | M4: 120 | N4: 36 | O4: 30 | P4: 6 | Q4: =(L4+M4+N4+O4+P4)/C4 -> 2.8 | R4: =(L4+M4+N4+O4+P4)/G4 -> 38.53211009
A5: Soybeans | B5: 600 | C5: 35 | F5: 21000 | G5: 10 | H5: 210000 | I5: 350 | K5: Soybeans | L5: 65 | M5: 18 | N5: 25 | O5: 30 | P5: 0 | Q5: 3.942857143 | R5: 13.8
A6: Winter Wheat | B6: 0 | C6: 0 | F6: 0 | G6: 0 | H6: 0 | I6: 0 | K6: Winter Wheat | L6: 0 | M6: 0 | N6: 0 | O6: 0 | P6: 0
A7: Mixed Hay | B7: 300 | C7: 1.5 | D7: 450 | F7: 0 | G7: 0 | H7: 0 | I7: 0 | K7: Mixed Hay | L7: 0 | M7: 0 | N7: 0 | O7: 0 | P7: 0 | Q7: 0
A8: Pasture | B8: 600 | C8: 1.2 | D8: 720 | F8: 0 | G8: 0 | H8: 0 | I8: 0 | K8: Pasture | L8: 0 | M8: 0 | N8: 0 | O8: 0 | P8: 0 | Q8: 0
B9: 0 | C9: 0 | F9: 0 | G9: 0 | H9: 0 | I9: 0 | L9: 0 | M9: 0 | N9: 0 | O9: 0 | P9: 0
B10: 0 | C10: 0 | F10: 0 | G10: 0 | H10: 0 | I10: 0 | L10: 0 | M10: 0 | N10: 0 | O10: 0 | P10: 0
B11: 0 | C11: 0 | F11: 0 | G11: 0 | H11: 0 | I11: 0 | L11: 0 | M11: 0 | N11: 0 | O11: 0 | P11: 0
B12: 0 | C12: 0 | F12: 0 | G12: 0 | H12: 0 | I12: 0 | L12: 0 | M12: 0 | N12: 0 | O12: 0 | P12: 0
B13: 0 | C13: 0 | F13: 0 | G13: 0 | H13: 0 | I13: 0 | L13: 0 | M13: 0 | N13: 0 | O13: 0 | P13: 0
B14: 0 | C14: 0 | F14: 0 | G14: 0 | H14: 0 | I14: 0 | L14: 0 | M14: 0 | N14: 0 | O14: 0 | P14: 0
A15: Livestock | B15: Head | C15: % | D15: Replacements | E15: Sell | F15: Weight | G15: Price/lb. | H15: Value | I15: Gross $/Acre | R15: Return Over Listed Costs/A.
A16: Beef cows | B16: 100 | C16: 0.9 | D16: 10 | E16: =(B16*C16)-D16 -> 80 | F16: 600 | G16: 2.4 | H16: =F16*E16*G16 -> 115200 | I16: =SUM(B3:B14) -> 2700 | L16: Crop totals for per acre expenses: | Q16: Listed Costs/Ac.
A17: Open Heifers | B17: 0 | C17: 0 | D17: 0 | E17: =(B17*C17)-D17 -> 0 | F17: 0 | G17: 0 | H17: =F17*E17*G17 -> 0 | I17: Total Acres | K17: =A3 -> Wheat | L17: =B3*L3 -> 17500 | M17: =B3*M3 -> 94500 | N17: =B3*N3 -> 28700 | O17: =B3*O3 -> 22400 | P17: =B3*P3 -> 4200 | Q17: =(L17+M17+N17+O17+P17)/B3 -> 239 | R17: =I3-Q17 -> 36
A18: Cull cows | B18: 10 | C18: 1 | D18: 0 | E18: =(B18*C18)-D18 -> 10 | F18: 1300 | G18: 1.1 | H18: =F18*E18*G18 -> 14300 | I18: Notes: | K18: Malting Barley | L18: 9000 | M18: 60000 | N18: 18000 | O18: 15000 | P18: 3000 | Q18: =(L18+M18+N18+O18+P18)/B4 -> 210 | R18: =I4-Q18 -> 198.75
A19: Other Livestock | B19: 0 | C19: 0 | D19: 0 | E19: =(B19*C19)-D19 -> 0 | F19: 0 | G19: 0 | H19: =F19*E19*G19 -> 0 | K19: Soybeans | L19: 39000 | M19: 10800 | N19: 15000 | O19: 18000 | P19: 0 | Q19: 138 | R19: 212
A20: Other Farm Income | H20: 0 | K20: Winter Wheat | L20: 0 | M20: 0 | N20: 0 | O20: 0 | P20: 0
A21: OPERATING EXPENSES | E21: Credit Needed | F21: Planned Exp. | G21: Gov't Pymt. | H21: 20000 | K21: Mixed Hay | L21: 0 | M21: 0 | N21: 0 | O21: 0 | P21: 0 | Q21: 0 | R21: 0
A22: Machinery & Building Repair | E22: 20000 | F22: 27000 | G22: Total | H22: =SUM(H3:H21) -> 751375 | K22: Pasture | L22: 0 | M22: 0 | N22: 0 | O22: 0 | P22: 0 | Q22: 0 | R22: 0
A23: Interest | E23: 0 | F23: 39000 | G23: Notes: | L23: 0 | M23: 0 | N23: 0 | O23: 0 | P23: 0
A24: Seed | E24: 65500 | F24: =L29 -> 65500 | L24: 0 | M24: 0 | N24: 0 | O24: 0 | P24: 0
A25: Fertilizer | E25: 165300 | F25: =M29 -> 165300 | G25: Based on all soil tests | L25: 0 | M25: 0 | N25: 0 | O25: 0 | P25: 0
A26: Chemical | E26: 61700 | F26: =N29 -> 61700 | G26: RR Soybeans | L26: 0 | M26: 0 | N26: 0 | O26: 0 | P26: 0
A27: Crop Insurance | E27: 0 | F27: =O29 -> 55400 | L27: 0 | M27: 0 | N27: 0 | O27: 0 | P27: 0
A28: Feed Expense | E28: 3500 | F28: 3500 | G28: Salt, Protein, Mineral | L28: 0 | M28: 0 | N28: 0 | O28: 0 | P28: 0
A29: Livestock Exp. (Vet,Supplies,Marketing,etc.) | E29: 4500 | F29: 4500 | G29: Hauling grain $3,000 | K29: Total Crop Exp. $ | L29: =SUM(L17:L28) -> 65500 | M29: =SUM(M17:M28) -> 165300 | N29: =SUM(N17:N28) -> 61700 | O29: =SUM(O17:O28) -> 55400 | P29: =SUM(P17:P28) -> 7200 | Q29: =(L29+M29+N29+O29+P29)/I16 -> 131.5185185
A30: Land Rent | E30: 42000 | F30: 42000 | G30: Projected $ Left From Prior Year | L30: Seed | M30: Fertilizer | N30: Chemical | O30: Crop Insur | P30: Custom | Q30: xxxxxxxxxx
A31: CustomHire-Other | B31: 3000 | C31: Lvstk. | D31: 0 | E31: 10000 | F31: =B31+D31+P29 -> 10200 | G31: Cash at Begin. of Period | I31: 1000
A32: Gas, Fuel and Oil | E32: 30000 | F32: 39000 | G32: Old Crop & Grain Sales | I32: 115000 | K32: Return over listed costs is available to pay for those expenses, capital purchases, family living and loan
A33: Real Estate Taxes | E33: 0 | F33: 11500 | G33: Old Livestock Sales | I33: 54000 | K33: payments listed on the plan. There are 5 areas of listed costs shown above.
A34: Hired Labor | E34: 3000 | F34: 4000 | G34: Old Acct's Receivable | I34: 6000 | K34: Notes:
A35: Farm Insurance | E35: 3900 | F35: 7800 | G35: Last Year's Acct's Pay. | I35: 29500
A36: Utilities | E36: 2400 | F36: 4800 | G36: Last Year's Oper. Loans | I36: 31900
A37: General Farm Supplies | E37: 2000 | F37: 5000 | G37: Last Year's Chat. Loans | I37: 34600
E38: 0 | F38: 0 | G38: Last Year's RE Loans | I38: 75000
A39: Borrowing $450,000 Operating | E39: 0 | F39: 0 | G39: Projected Cash Balance | I39: =I31+I32+I33+I34-I35-I36-I37-I38 -> 5000
C40: TOTAL> | E40: =SUM(E22:E39) -> 413800 | F40: =SUM(F22:F39) -> 546200 | T40: Calculating Amortized Loan Payments(Ending Balance = 0 or a negative balance)
A41: Family Living Expense | E41: 36200 | F41: 60000 | G41: Financial Summary | K41: Land Rental Units | T41: Loan Amount $ | U41: Inter.Rate | V41: Years | W41: Ending Bal.$ | X41: Payment $ | Y41: Interest $
A42: Capital Purchases | B42: Trading Combines, 5%, 5 Years | E42: 250000 | F42: 250000 | G42: Farm Income | I42: =H22 -> 751375 | K42: Landlord | N42: Acres | O42: Rent/Acre | P42: Total Paid | T42: 250000 | U42: 0.05 | V42: 5 | W42: 0 | X42: =PMT(U42,V42,T42,W42,0)*-1 -> 57743.69953 | Y42: =T42*U42 -> 12500
A43: Capital Purchases | B43: Semi Tractor & Trailer | E43: 0 | F43: 50000 | G43: Farm Expenses | I43: =F40 -> 546200 | K43: J. Johnson | N43: 200 | O43: 65 | P43: =200*65 -> 13000 | T43: 200000 | U43: 0.04 | V43: 10 | W43: 0 | X43: 24658.18887 | Y43: =T43*U43 -> 8000
A44: Payments to be made | G44: Net Farm Income | I44: =I42-I43 -> 205175 | K44: Selma Bjronson | N44: 300 | O44: 70 | P44: =300*70 -> 21000 | T44: 0 | U44: 0 | V44: 0 | W44: 0 | Y44: 0
A45: Annual Operating Ln | B45: Int rate | C45: 0.04 | D45: Est Months | E45: 9 | F45: =(E40+E41)*(1+(C45*(E45/12))) -> 463500 | G45: Non Farm Income | I45: 15000 | K45: Charlie Brightone | N45: 100 | O45: 80 | P45: =100*80 -> 8000 | T45: 0 | U45: 0 | V45: 0 | W45: 0 | Y45: 0
A46: Capital Purchases Ln | B46: Int rate | C46: 0 | D46: Years for loan | E46: 0 | F46: 0 | G46: Family Living Exp | I46: =F41 -> 60000 | O46: 0 | P46: 0 | T46: 0 | U46: 0 | V46: 0 | W46: 0 | Y46: 0
F47: 0 | G47: Net Cash Income | I47: =I44+I45-I46 -> 160175 | O47: 0 | P47: 0 | T47: 0 | U47: 0 | V47: 0 | W47: 0 | Y47: 0
A48: FCS RE $200,000 Bal. 4% 10 Years amortized | F48: 24658 | G48: (Plus) Proj. Cash Bal. | I48: =I39 -> 5000 | O48: 0 | P48: 0 | T48: 0 | U48: 0 | V48: 0 | W48: 0 | Y48: 0
A49: Farm Bank $100,000 Tractor Loan 5%, $20,000 +Interest Annually | F49: 25000 | G49: (Plus) Interest Expense | I49: =F23 -> 39000 | O49: 0 | P49: 0 | T49: 0 | U49: 0 | V49: 0 | W49: 0 | Y49: 0
A50: JD Credit, Combine, $250,000 for 5 Years @ 5% | F50: 57744 | G50: (Plus) Money Borrowed | I50: =SUM(E40:E43) -> 700000 | O50: 0 | P50: 0 | T50: 0 | U50: 0 | V50: 0 | W50: 0 | Y50: 0
F51: 0 | G51: (Less)Capital Purchases | I51: =SUM(F42:F43) -> 300000 | O51: 0 | P51: 0 | T51: 0 | U51: 0 | V51: 0 | W51: 0 | Y51: 0
F52: 0 | G52: Available for Payments | I52: =I47+I48+I49+I50-I51 -> 604175 | O52: 0 | P52: 0 | T52: 0 | U52: 0 | V52: 0 | W52: 0 | Y52: 0
A53: Income & Soc. Sec. Taxes to be paid | F53: 15000 | G53: Payments to be made | I53: =F54 -> 585902 | O53: 0 | P53: 0 | T53: 0 | U53: 0 | V53: 0 | W53: 0 | Y53: 0
C54: Total Payments to be made | F54: =SUM(F45:F53) -> 585902 | G54: Margin | I54: =I52-I53 -> 18273 | K54: Total Acres Rented, Avg. Rent, Total Paid | N54: =N43+N44+N45+N46+N47+N48+N49+N50+N51+N52+N53 -> 600 | O54: =P54/N54 -> 70 | P54: =P43+P44+P45+P46+P47+P48+P49+P50+P51+P52+P53 -> 42000 | T54: Total Interest $ | U54: xxxxxxxxx | V54: xxxxxxxxx | W54: xxxxxxxxxxxx | X54: xxxxxxxxx | Y54: =SUM(Y42:Y53) -> 20500
